fUSD/lending_fUSD_20250720
["ID","MTS","AMOUNT","RATE_DAILY","PERIOD"]
[373432642,1753006248526,-500.0,0.0001845,2]
[373432643,1753006248536,-500.0,0.0001845,2]
[373432644,1753006248545,-500.0,0.0001845,2]
[373432645,1753006248555,-500.0,0.0001845,2]
[373432646,1753006248565,-500.0,0.0001845,2]
[373432647,1753006248574,-500.0,0.0001845,2]
[373432648,1753006248585,-500.0,0.0001845,2]
[373432649,1753006248594,-500.0,0.0001845,2]
[373432650,1753006248603,-500.0,0.0001845,2]
[373432651,1753006248613,-500.0,0.0001845,2]
[373432652,1753006248622,-500.0,0.0001845,2]
[373432653,1753006248632,-500.0,0.0001845,2]
[373432654,1753006248641,-500.0,0.0001845,2]
[373432655,1753006248650,-500.0,0.0001845,2]
[373432656,1753006248660,-500.0,0.0001845,2]
[373432657,1753006248669,-500.0,0.0001845,2]
[373432658,1753006248679,-500.0,0.0001845,2]
[373432659,1753006248689,-500.0,0.0001845,2]
[373432660,1753006248699,-500.0,0.0001845,2]
[373432661,1753006248709,-500.0,0.0001845,2]
[373432662,1753006248719,-500.0,0.0001845,2]
[373432663,1753006248728,-500.0,0.0001845,2]
[373432664,1753006248738,-500.0,0.0001845,2]
[373432665,1753006248748,-500.0,0.0001845,2]
[373432666,1753006248757,-500.0,0.0001845,2]
[373432667,1753006248767,-500.0,0.0001845,2]
[373432668,1753006248778,-500.0,0.0001845,2]
[373432669,1753006248787,-500.0,0.0001845,2]
[373432670,1753006248797,-500.0,0.0001845,2]
[373432671,1753006248806,-500.0,0.0001845,2]
[373432672,1753006248816,-500.0,0.0001845,2]
[373432673,1753006248825,-500.0,0.0001845,2]
[373432674,1753006248835,-500.0,0.0001845,2]
[373432675,1753006248844,-500.0,0.0001845,2]
[373432676,1753006248854,-500.0,0.0001845,2]
[373432677,1753006248863,-500.0,0.0001845,2]
[373432678,1753006248873,-500.0,0.0001845,2]
[373432679,1753006248883,-500.0,0.0001845,2]
[373432680,1753006248892,-500.0,0.0001845,2]
[373432681,1753006248903,-500.0,0.0001845,2]
[373432682,1753006248913,-500.0,0.0001845,2]
[373432683,1753006248923,-500.0,0.0001845,2]
[373432684,1753006248933,-500.0,0.0001845,2]
[373432685,1753006248942,-500.0,0.0001845,2]
[373432686,1753006248952,-500.0,0.0001845,2]
[373432687,1753006248962,-500.0,0.0001845,2]
[373432688,1753006248972,-500.0,0.0001845,2]
[373432689,1753006248981,-500.0,0.0001845,2]
[373432690,1753006248991,-500.0,0.0001845,2]
[373432691,1753006249002,-500.0,0.0001845,2]
[373432692,1753006249013,-500.0,0.0001845,2]
[373432693,1753006249023,-500.0,0.0001845,2]
[373432694,1753006249032,-500.0,0.0001845,2]
[373432695,1753006249042,-500.0,0.0001845,2]
[373432696,1753006249052,-500.0,0.0001845,2]
[373432697,1753006249061,-500.0,0.0001845,2]
[373432698,1753006249071,-500.0,0.0001845,2]
[373432699,1753006249082,-500.0,0.0001845,2]
[373432700,1753006249091,-500.0,0.0001845,2]
[373432701,1753006249101,-500.0,0.0001845,2]
[373432702,1753006249110,-500.0,0.0001845,2]
[373432703,1753006249120,-500.0,0.0001845,2]
[373432704,1753006249130,-500.0,0.0001845,2]
[373432705,1753006249139,-500.0,0.0001845,2]
[373432706,1753006249149,-500.0,0.0001845,2]
[373432707,1753006249158,-500.0,0.0001845,2]
[373432708,1753006249168,-500.0,0.0001845,2]
[373432709,1753006249177,-500.0,0.0001845,2]
[373432710,1753006249187,-500.0,0.0001845,2]
[373432711,1753006249196,-300.80853008,0.0001845,2]
[373432712,1753006249214,-199.19146992,0.0001845,2]
[373432713,1753006249224,-500.0,0.0001845,2]
[373432714,1753006249233,-500.0,0.0001845,2]
[373432715,1753006249243,-500.0,0.0001845,2]
[373432716,1753006249251,-500.0,0.0001845,2]
[373432717,1753006249261,-500.0,0.0001845,2]
[373432718,1753006249271,-500.0,0.0001845,2]
[373432719,1753006249281,-500.0,0.0001845,2]
[373432720,1753006249290,-500.0,0.0001845,2]
[373432721,1753006249301,-500.0,0.0001845,2]
[373432722,1753006249310,-100.10708018,0.0001845,2]
[373432723,1753006249326,-399.89291982,0.0001845,2]
[373432724,1753006249335,-190.25708018,0.0001845,2]
[373432725,1753006249347,-309.74291982,0.0001845,2]
[373432726,1753006249356,-500.0,0.0001845,2]
[373432727,1753006249366,-500.0,0.0001845,2]
[373432728,1753006249377,-500.0,0.0001845,2]
[373432729,1753006249388,-500.0,0.0001845,2]
[373432730,1753006249399,-500.0,0.0001845,2]
[373432731,1753006249411,-500.0,0.0001845,2]
[373432732,1753006249421,-500.0,0.0001845,2]
[373432733,1753006249431,-500.0,0.0001845,2]
[373432734,1753006249440,-500.0,0.0001845,2]
[373432735,1753006249449,-500.0,0.0001845,2]
[373432736,1753006249459,-500.0,0.0001845,2]
[373432737,1753006249469,-500.0,0.0001845,2]
[373432738,1753006249479,-500.0,0.0001845,2]
[373432739,1753006249488,-500.0,0.0001845,2]
[373432740,1753006249498,-500.0,0.0001845,2]
[373432741,1753006249507,-500.0,0.0001845,2]
[373432742,1753006249517,-500.0,0.0001845,2]
[373432743,1753006249527,-500.0,0.0001845,2]
[373432744,1753006249536,-115.36208062,0.0001845,2]
[373432745,1753006249552,-384.63791938,0.0001845,2]
[373432746,1753006249561,-500.0,0.0001845,2]
[373432747,1753006249571,-500.0,0.0001845,2]
[373432748,1753006249580,-500.0,0.0001845,2]
[373432749,1753006249589,-500.0,0.0001845,2]
[373432750,1753006249598,-500.0,0.0001845,2]
[373432751,1753006249607,-55.0015208,0.0001845,2]
[373432752,1753006249619,-400.0,0.0001845,2]
[373432753,1753006249634,-44.9984792,0.0001845,2]
[373432754,1753006249644,-217.1186968,0.0001845,2]
[373432755,1753006249655,-282.8813032,0.0001845,2]
[373432756,1753006249665,-500.0,0.0001845,2]
[373432757,1753006249675,-500.0,0.0001845,2]
[373432758,1753006249684,-500.0,0.0001845,2]
[373432759,1753006249693,-500.0,0.0001845,2]
[373432760,1753006249703,-500.0,0.0001845,2]
[373432761,1753006249712,-500.0,0.0001845,2]
[373432762,1753006249722,-500.0,0.0001845,2]
[373432763,1753006249731,-500.0,0.0001845,2]
[373432764,1753006249740,-500.0,0.0001845,2]
[373432765,1753006249750,-500.0,0.0001845,2]
[373432766,1753006249759,-500.0,0.0001845,2]
[373432767,1753006249768,-500.0,0.0001845,2]
[373432768,1753006249777,-471.0711446,0.0001845,2]
[373432769,1753006263736,1069.72,0.00026408,120]
[373432770,1753006381301,153.62,0.000229,31]
[373432771,1753006381379,153.62,0.000229,31]
[373432772,1753006381435,153.62,0.000229,31]
[373432773,1753006381508,153.62,0.000229,31]
[373432774,1753006381573,153.62,0.000229,31]
[373432775,1753006381644,153.62,0.000229,31]
[373432776,1753006381702,153.62,0.000229,31]
[373432777,1753006381765,153.62,0.000229,31]
[373432778,1753006422404,150.0,0.00030136,120]
[373432780,1753006483048,152.5103691,0.00016,2]
[373432781,1753006668321,315.15927901,0.000211,28]
[373432782,1753006717571,2000.0,0.00017067,120]
[373432783,1753006833323,1392.1882327,0.0003,120]
[373432785,1753006858849,241.26,0.00013699,2]
[373432786,1753006948894,511.0,0.00015481,2]
[373432787,1753006985790,153.64,0.000229,31]
[373432788,1753006985849,153.64,0.000229,31]
[373432789,1753006985913,153.64,0.000229,31]
[373432790,1753006985971,153.64,0.000229,31]
[373432791,1753006986044,153.64,0.000229,31]
[373432792,1753006986108,153.64,0.000229,31]
[373432793,1753007133254,250.0,0.00030136,120]
[373432795,1753007162712,250.0,0.00030136,120]
[373432796,1753007195660,500.0,0.00030137,120]
[373432797,1753007197725,890.607,0.00030137,120]
[373432798,1753007202534,250.0,0.00030136,120]
[373432799,1753007211043,1061.30676755,0.0003013,120]
[373432800,1753007211336,250.0,0.00030136,120]
[373432801,1753007223414,250.0,0.00030136,120]
[373432802,1753007225436,500.0,0.00030137,120]
[373432803,1753007232592,250.0,0.00030136,120]
[373432805,1753007247554,500.0,0.00030137,120]
[373432806,1753007262012,256.3,0.00030136,120]
[373432807,1753007267009,500.0,0.00030137,120]
[373432808,1753007273002,250.0,0.00030136,120]
[373432809,1753007298864,500.0,0.00030137,120]
[373432810,1753007309807,200.000001,0.0003,120]
[373432811,1753007319413,600.0,0.00030137,120]
[373432815,1753007338876,505.0,0.00030137,120]
[373432818,1753007361517,506.28999717,0.00030137,120]
[373432819,1753007375093,150.0,0.00030136,120]
[373432820,1753007427337,-164.0,0.00016274,3]
[373432821,1753007427361,-229.41917609,0.0001628,2]
[373432825,1753007431626,-770.58082391,0.0001628,2]
[373432826,1753007431636,-1000.0,0.00016287,2]
[373432827,1753007431646,-1000.0,0.00016338,2]
[373432828,1753007431655,-171.51,0.00016414,2]
[373432829,1753007431666,-744.22,0.00016417,2]
[373432830,1753007431676,-200.0,0.00016833,2]
[373432831,1753007431686,-1038.11333816,0.00016891,2]
[373432832,1753007431773,-161.88666184,0.00016891,2]
[373432833,1753007431783,-911.31290945,0.00016892,2]
[373432834,1753007431795,-1083.96,0.00016892,2]
[373432835,1753007431806,-1001.67040638,0.00016892,2]
[373432836,1753007431818,-2261.13428039,0.00016892,2]
[373432837,1753007431827,-150.0,0.0001695,2]
[373432838,1753007431837,-71.74621321,0.00016964,2]
[373432839,1753007431848,-78.25378679,0.00016964,2]
[373432840,1753007431858,-300.0,0.00016992,2]
[373432841,1753007431867,-546.65,0.00016993,2]
[373432842,1753007431877,-1099.49621321,0.00017,2]
[373432871,1753007432286,-7236.05163971,0.00017,2]
[373432874,1753007432298,-1040.31944465,0.00017,2]
[373433051,1753007437542,-626.44514689,0.00017,2]
[373433052,1753007437554,-17469.0,0.00017,2]
[373433053,1753007437651,-16803.6526715,0.00017,2]
[373433054,1753007437755,-1340.45955201,0.00017,2]
[373433055,1753007437767,-366.5316,0.00017,2]
[373433056,1753007437873,-1574.00324142,0.00017,2]
[373433057,1753007437923,-2356.70560517,0.00017,2]
[373433060,1753007437935,-1397.359936,0.00017,2]
[373433062,1753007437946,-1847.14492891,0.00017,2]
[373433234,1753007439682,-1095.6062822,0.00017,2]
[373433242,1753007439738,-1752.72875,0.00017,2]
[373433244,1753007439750,-1439.07083368,0.00017,2]
[373433268,1753007439963,-206.0,0.00016247,3]
[373433270,1753007439972,-96.2027,0.00017,2]
[373433272,1753007439983,-472.86339972,0.00017,2]
[373433274,1753007439995,-345.16037055,0.00017,2]
[373433277,1753007440006,-372.34049029,0.00017,2]
[373433279,1753007440017,-7648.94644887,0.00017,2]
[373433281,1753007440029,-5164.92537979,0.00017,2]
[373433286,1753007440065,-1469.6911387,0.00017,2]
[373433292,1753007440122,-4540.28453403,0.00017,2]
[373433545,1753007442813,-19477.38991202,0.00017,2]
[373433546,1753007442835,-41131.14514802,0.00017,2]
[373433547,1753007442865,-3389.85627947,0.00017,2]
[373433548,1753007442877,-1816.26759321,0.00017,2]
[373433549,1753007442889,-770.90390647,0.00017,2]
[373433550,1753007443037,-5001.11841131,0.00017,2]
[373433551,1753007443048,-13017.6401355,0.00017,2]
[373433552,1753007443060,-13125.79914457,0.00017,2]
[373433554,1753007443070,-500.0,0.00017,2]
[373433556,1753007443079,-500.0,0.00017,2]
[373433558,1753007443088,-409.21239131,0.00017,2]
[373433559,1753007443099,-90.78760869,0.00017,2]
[373433560,1753007443109,-1000.0,0.00017012,2]
[373433561,1753007443118,-250.0,0.00017032,2]
[373433562,1753007443127,-37.14038544,0.00017057,2]
[373433570,1753007445918,-194.14331179,0.00017057,2]
[373433571,1753007445927,-7142.856,0.00017057,2]
[373433572,1753007445937,-1865.99,0.00017067,2]
[373433573,1753007445946,-171.51,0.00017234,2]
[373433574,1753007445955,-150.0,0.0001726,2]
[373433575,1753007445964,-159.74061731,0.0001726,2]
[373433576,1753007445973,-155.60250613,0.0001726,2]
[373433577,1753007445982,-158.15574996,0.0001726,2]
[373433578,1753007445991,-150.0,0.0001726,2]
[373433579,1753007446000,-152.69271144,0.0001726,2]
[373433580,1753007446011,-151.09014063,0.0001726,2]
[373433581,1753007446020,-153.44,0.00017379,2]
[373433582,1753007446029,-153.44,0.00017408,2]
[373433583,1753007446040,-153.44,0.00017437,2]
[373433584,1753007446050,-153.44,0.00017466,2]
[373433585,1753007446059,-153.44,0.00017495,2]
[373433586,1753007446068,-525.0,0.000175,2]
[373433587,1753007446081,-153.44,0.00017524,2]
[373433588,1753007446099,-600.0,0.00017537,2]
[373433589,1753007446114,-600.0,0.00017537,2]
[373433590,1753007446129,-386.7,0.00017537,2]
[373433591,1753007446145,-1000.0,0.00017548,2]
[373433592,1753007446161,-1118.20764299,0.00017548,2]
[373433593,1753007446176,-153.44,0.00017553,2]
[373433594,1753007446190,-7407.141672,0.00017605,2]
[373433595,1753007446204,-1069.72,0.00017605,2]
[373433598,1753007446219,-268.65,0.00017672,3]
[373433600,1753007446233,-16414.34182814,0.0001776,2]
[373433603,1753007446249,-1636.283,0.00017781,2]
[373433606,1753007446264,-427.5585857,0.00017833,2]
[373433608,1753007446279,-151.0,0.00017833,2]
[373433611,1753007446297,-359.76179104,0.00017833,2]
[373433613,1753007446311,-500.0,0.00017833,2]
[373433616,1753007446326,-500.0,0.00017833,2]
[373433618,1753007446342,-500.0,0.00017833,2]
[373433620,1753007446359,-500.0,0.00017833,2]
[373433623,1753007446372,-500.0,0.00017833,2]
[373433626,1753007446384,-191.87295522,0.00017833,2]
[373433629,1753007446400,-500.0,0.00017833,2]
[373433631,1753007446414,-500.0,0.00017833,2]
[373433633,1753007446427,-154.19780786,0.00017833,2]
[373433635,1753007446440,-500.0,0.00017844,2]
[373433638,1753007446456,-500.0,0.00017844,2]
[373433640,1753007446469,-500.0,0.00017844,2]
[373433641,1753007446480,-500.0,0.00017844,2]
[373433642,1753007446494,-500.0,0.00017844,2]
[373433643,1753007446511,-500.0,0.00017844,2]
[373433644,1753007446524,-500.0,0.00017844,2]
[373433645,1753007446537,-500.0,0.00017844,2]
[373433646,1753007446550,-500.0,0.00017844,2]
[373433647,1753007446562,-500.0,0.00017844,2]
[373433648,1753007446575,-500.0,0.00017844,2]
[373433649,1753007446588,-500.0,0.00017844,2]
[373433650,1753007446601,-500.0,0.00017844,2]
[373433651,1753007446613,-532.0,0.00017844,2]
[373433652,1753007446626,-500.0,0.00017844,2]
[373433653,1753007446641,-150.0,0.00017844,2]
[373433654,1753007446654,-495.0,0.00017844,2]
[373433655,1753007446667,-500.0,0.00017844,2]
[373433656,1753007446680,-500.0,0.00017844,2]
[373433657,1753007446694,-150.0,0.00017844,2]
[373433658,1753007446707,-150.0,0.00017844,2]
[373433659,1753007446720,-201.07551686,0.00017844,2]
[373433660,1753007446733,-500.0,0.00017844,2]
[373433661,1753007446745,-500.0,0.00017844,2]
[373433662,1753007446759,-500.0,0.00017844,2]
[373433663,1753007446771,-960.0,0.00017844,2]
[373433664,1753007446784,-208.35873298,0.00017844,2]
[373433665,1753007446797,-3497.0,0.00017844,2]
[373433666,1753007446810,-500.0,0.00017844,2]
[373433667,1753007446823,-1738.0,0.00017844,2]
[373433668,1753007446836,-500.0,0.00017844,2]
[373433669,1753007446850,-11435.0,0.0001789,2]
[373433670,1753007446863,-1000.0,0.00017901,2]
[373433671,1753007446876,-300.0,0.00017901,2]
[373433672,1753007446890,-1000.0,0.00017901,2]
[373433673,1753007446904,-150.1,0.00017927,2]
[373433674,1753007446916,-177.31093282,0.00017954,2]
[373433675,1753007446930,-2223.56839647,0.00017973,2]
[373433676,1753007446945,-500.0,0.00017973,2]
[373433677,1753007446957,-1161.01992887,0.00018,2]
[373433678,1753007446970,-200.416567,0.00018,2]
[373433679,1753007446983,-5590.83644851,0.00018,2]
[373433680,1753007446995,-1287.0,0.00018054,2]
[373433681,1753007447008,-595.0,0.00018054,2]
[373433682,1753007447020,-562.0,0.00018054,2]
[373433683,1753007447033,-1687.0,0.00018054,2]
[373433684,1753007447047,-889.0,0.00018054,2]
[373433685,1753007447059,-645.351,0.00018054,2]
[373433686,1753007447072,-952.0,0.00018054,2]
[373433687,1753007447085,-3352.0,0.00018054,2]
[373433688,1753007447098,-4126.0,0.00018054,2]
[373433689,1753007447111,-171.51,0.00018055,2]
[373433690,1753007447125,-1500.0,0.00018096,2]
[373433691,1753007447137,-1060.09071626,0.000181,2]
[373433692,1753007447151,-500.0,0.00018118,2]
[373433693,1753007447163,-150.0,0.00018118,2]
[373433694,1753007447176,-495.0,0.00018118,2]
[373433695,1753007447189,-500.0,0.00018118,2]
[373433696,1753007447201,-500.0,0.00018118,2]
[373433697,1753007447214,-150.0,0.00018118,2]
[373433698,1753007447227,-150.0,0.00018118,2]
[373433699,1753007447242,-500.0,0.00018118,2]
[373433700,1753007447254,-500.0,0.00018118,2]
[373433701,1753007447267,-500.0,0.00018118,2]
[373433702,1753007447280,-960.0,0.00018118,2]
[373433703,1753007447293,-3497.0,0.00018118,2]
[373433704,1753007447306,-500.0,0.00018118,2]
[373433705,1753007447319,-1738.0,0.00018118,2]
[373433706,1753007447333,-500.0,0.00018118,2]
[373433707,1753007447348,-780.48168461,0.00018147,2]
[373433708,1753007447361,-6388.17432859,0.00018153,2]
[373433709,1753007447374,-176.5520442,0.0001817,2]
[373433710,1753007447387,-511.0,0.0001819,2]
[373433711,1753007447400,-24637.189,0.000182,2]
[373433712,1753007447414,-278.16978,0.0001827,2]
[373433713,1753007447428,-772.18,0.00018329,2]
[373433714,1753007447442,-173.21483441,0.0001834,2]
[373433715,1753007447455,-7275.44,0.00018356,2]
[373433716,1753007447468,-278.16978,0.0001838,2]
[373433717,1753007447481,-500.0,0.00018392,2]
[373433718,1753007447495,-150.0,0.00018392,2]
[373433719,1753007447508,-495.0,0.00018392,2]
[373433720,1753007447521,-500.0,0.00018392,2]
[373433721,1753007447534,-500.0,0.00018392,2]
[373433722,1753007447547,-150.0,0.00018392,2]
[373433723,1753007447559,-150.0,0.00018392,2]
[373433724,1753007447571,-500.0,0.00018392,2]
[373433725,1753007447584,-500.0,0.00018392,2]
[373433726,1753007447597,-500.0,0.00018392,2]
[373433727,1753007447610,-960.0,0.00018392,2]
[373433728,1753007447623,-3497.0,0.00018392,2]
[373433729,1753007447635,-500.0,0.00018392,2]
[373433730,1753007447648,-1738.0,0.00018392,2]
[373433731,1753007447660,-500.41585972,0.00018392,2]
[373433732,1753007447674,-181.61834081,0.000184,2]
[373433733,1753007447687,-239.84119403,0.00018426,2]
[373433734,1753007447699,-500.0,0.00018439,2]
[373433735,1753007447712,-240.42395096,0.00018439,2]
[373433736,1753007447725,-500.0,0.00018439,2]
[373433737,1753007447738,-500.0,0.00018439,2]
[373433738,1753007447750,-500.0,0.00018439,2]
[373433739,1753007447763,-427.62402871,0.00018439,2]
[373433740,1753007447776,-500.0,0.00018439,2]
[373433741,1753007447789,-500.0,0.00018439,2]
[373433742,1753007447803,-500.0,0.00018439,2]
[373433743,1753007447816,-13402.67699624,0.0001844,2]
[373433744,1753007447854,-1298.10342144,0.0001844,2]
[373433745,1753007447883,-806.30518612,0.0001844,2]
[373433746,1753007447899,-5402.34581492,0.0001844,2]
[373433747,1753007447916,-2408.08899896,0.0001844,2]
[373433748,1753007447981,-6153.25283485,0.0001844,2]
[373433749,1753007515483,250.0,0.00015,2]
[373433750,1753007589049,153.66,0.000229,31]
[373433751,1753007589115,153.66,0.000229,31]
[373433752,1753007589696,153.66,0.000229,31]
[373433753,1753007589762,153.66,0.000229,31]
[373433754,1753007589832,153.66,0.000229,31]
[373433755,1753007589890,153.66,0.000229,31]
[373433756,1753007589949,153.66,0.000229,31]
[373433757,1753007590027,153.66,0.000229,31]
[373433758,1753007624424,33333.0,0.00030137,120]
[373433759,1753007646204,2949.26080648,0.00030137,120]
[373433760,1753007679194,509.47,0.00030137,120]
[373433761,1753007692055,-1000.0,0.00017274,2]
[373433762,1753007692077,-1000.0,0.00017316,2]
[373433763,1753007692100,-150.0,0.00017358,2]
[373433764,1753007692121,-161.22,0.00017495,2]
[373433765,1753007692143,-150.0,0.00017568,2]
[373433766,1753007692163,-1000.0,0.00017585,2]
[373433767,1753007692184,-1047.97,0.00017685,2]
[373433768,1753007692205,-300.0,0.00017775,2]
[373433769,1753007692225,-300.0,0.00017775,2]
[373433770,1753007692245,-21364.0,0.00017776,2]
[373433771,1753007692265,-862.0,0.00017776,2]
[373433772,1753007692285,-961.0,0.00017776,2]
[373433773,1753007692306,-1703.81,0.00017915,2]
[373433774,1753007725810,423.45,0.0001773,120]
[373433776,1753007825057,229.19,0.00013699,2]
[373433778,1753008191707,153.7,0.000229,31]
[373433779,1753008191774,153.7,0.000229,31]
[373433780,1753008191833,153.7,0.000229,31]
[373433781,1753008191901,153.7,0.000229,31]
[373433782,1753008192331,153.7,0.000229,31]
[373433783,1753008192398,153.7,0.000229,31]
[373433784,1753008195565,153.7,0.000229,31]
[373433785,1753008234680,150.0,0.00030136,120]
[373433788,1753008524163,500.0,0.000301,120]
[373433789,1753008537692,500.0,0.000301,120]
[373433790,1753008549148,225.0,0.000301,120]
[373433791,1753008554034,1004.62,0.00025408,120]
[373433795,1753008632055,-5825.16,0.00016866,2]
[373433796,1753008632065,-1200.0,0.00016938,2]
[373433797,1753008632075,-209.94,0.00016939,2]
[373433798,1753008632084,-1004.62,0.00016939,2]
[373433799,1753008632094,-666.0,0.0001698,2]
[373433800,1753008632103,-1000.0,0.00016987,2]
[373433801,1753008632113,-3036.04,0.00016994,2]
[373433802,1753008632123,-1000.0,0.00017048,2]
[373433803,1753008632132,-250.0,0.00017067,2]
[373433804,1753008632141,-300.0,0.00017099,2]
[373433805,1753008632151,-50368.11407443,0.000171,2]
[373433806,1753008632160,-231.28369723,0.00017144,2]
[373433807,1753008632171,-7142.856,0.00017144,2]
[373433808,1753008632182,-3272.16,0.00017154,2]
[373433809,1753008632192,-1000.0,0.00017178,2]
[373433810,1753008632201,-150.0,0.0001726,2]
[373433811,1753008632210,-150.0,0.0001726,2]
[373433812,1753008632219,-172.3752031,0.0001726,2]
[373433813,1753008632228,-168.65,0.00017393,2]
[373433814,1753008632237,-154.99,0.0001748,2]
[373433815,1753008632246,-533.0,0.000175,2]
[373433816,1753008632255,-154.99,0.00017505,2]
[373433817,1753008632265,-154.99,0.0001753,2]
[373433819,1753008632275,-154.99,0.00017555,2]
[373433821,1753008632284,-1500.0,0.00017566,2]
[373433823,1753008632293,-154.99,0.0001758,2]
[373433825,1753008632302,-154.99,0.00017605,2]
[373433827,1753008632311,-154.99,0.0001763,2]
[373433829,1753008632320,-154.99,0.00017655,2]
[373433831,1753008632330,-7407.141672,0.00017692,2]
[373433833,1753008632340,-30000.0,0.000177,2]
[373433835,1753008632349,-275.55,0.00017714,2]
[373433837,1753008632358,-209.94,0.00017786,2]
[373433839,1753008632367,-157.72695529,0.00017904,2]
[373433842,1753008632379,-99.1313269,0.00017904,2]
[373433844,1753008632388,-359.76179104,0.00017904,2]
[373433846,1753008632398,-151.0,0.00017904,2]
[373433848,1753008632407,-326.90148227,0.00017905,3]
[373433850,1753008632422,-322.88851773,0.00017905,3]
[373433852,1753008632432,-3352.0,0.00017915,2]
[373433854,1753008632441,-952.0,0.00017915,2]
[373433856,1753008632450,-753.20262452,0.00017915,2]
[373433862,1753008632496,-53.79737548,0.00017915,2]
[373433864,1753008632505,-2017.0,0.00017915,2]
[373433866,1753008632514,-896.68520363,0.00017915,2]
[373433868,1753008632525,-371.31479637,0.00017915,2]
[373433870,1753008632534,-961.0,0.00017915,2]
[373433872,1753008632543,-889.0,0.00017915,2]
[373433874,1753008632552,-562.0,0.00017915,2]
[373433876,1753008632561,-595.0,0.00017915,2]
[373433878,1753008632571,-1287.0,0.00017915,2]
[373433880,1753008632580,-1298.84145201,0.00017915,2]
[373433883,1753008632592,-388.15854799,0.00017915,2]
[373433884,1753008632601,-22.53014658,0.00017915,2]
[373433887,1753008632612,-839.46985342,0.00017915,2]
[373433889,1753008632621,-9363.82895496,0.00017915,2]
[373433891,1753008632633,-11176.52504504,0.00017915,2]
[373433893,1753008632643,-760.91716636,0.00017918,2]
[373433905,1753008632746,-890.15283364,0.00017918,2]
[373433907,1753008632758,-161.62,0.0001794,2]
[373433909,1753008632767,-600.0,0.00017948,2]
[373433911,1753008632776,-600.0,0.00017948,2]
[373433913,1753008632786,-250.0,0.00018,7]
[373433915,1753008632795,-1309.026,0.00018055,2]
[373433917,1753008632804,-270.153741,0.00018081,2]
[373433944,1753008632813,-781.83729947,0.0001813,2]
[373433949,1753008633081,-5556.17436542,0.0001824,2]
[373433973,1753008637743,-1615.89038979,0.00017915,2]
[373433974,1753008637754,-345.641691,0.00017915,2]
[373433975,1753008637926,-1678.44699005,0.00017915,2]
[373433976,1753008637995,-486.02092916,0.00017915,2]
[373433977,1753008638004,-2125.03154844,0.0001824,2]
[373433978,1753008638014,-477.12,0.00018247,2]
[373433979,1753008638023,-185.44652,0.0001826,2]
[373433980,1753008638033,-684.21,0.00018329,2]
[373433981,1753008638043,-500.0,0.00018356,2]
[373433982,1753008638053,-500.0,0.00018356,2]
[373433983,1753008638062,-500.0,0.00018356,2]
[373433984,1753008638071,-500.0,0.00018356,2]
[373433985,1753008638080,-500.0,0.00018356,2]
[373433986,1753008638090,-500.0,0.00018356,2]
[373433987,1753008638100,-500.0,0.00018356,2]